[Event "Polish Youth 1st League 2022"]
[Site "Lublin"]
[Date "2022.06.28"]
[Round "4.22"]
[White "Wajda, Krzysztof"]
[Black "Jamrozik, Maciej"]
[Result "1/2-1/2"]
[ECO "D30"]
[WhiteElo "1494"]
[BlackElo "1251"]
[Annotator "NA RC"]
[PlyCount "93"]
[EventDate "2022.06.24"]
[EventType "team-tourn"]
[EventCountry "POL"]
[SourceTitle "playchess.com"]
[Source "ChessBase"]
[SourceQuality "1"]
[TimeControl "40/5400+30:1800+30"]

1. d4 {[%emt 0:00:03]} d5 {[%emt 0:00:05]} 2. c4 {[%emt 0:00:04]} e6 {[%emt 0:00:07]} 3. Nf3 {[%emt 0:00:10]} Nf6 {[%emt 0:00:06]} 4. e3 {[%emt 0:00:15]} Be7 {[%emt 0:00:08]} 5. b3 {[%emt 0:01:02]} O-O {[%emt 0:00:09]} 6. Bd3 {[%emt 0:00:34]} b6 {[%emt 0:00:07]} 7. O-O {[%emt 0:01:28]} Bb7 {[%emt 0:00:07]} 8. Bb2 {[%emt 0:01:36]} Nbd7 {[%emt 0:00:09]} 9. Nc3 {[%emt 0:01:09]} c5 {[%emt 0:00:16]} 10. Rc1 {[%emt 0:07:44]} Rc8 {[%emt 0:02:35]} 11. Qe2 {[%emt 0:01:40]} cxd4 {[%emt 0:02:08]} 12. exd4 {[%emt 0:04:14]} Re8 {[%emt 0:03:35]} 13. Rfd1 {[%emt 0:04:44]} Nb8 {[%emt 0:07:21]} 14. Ne5 {[%emt 0:02:29]} Nc6 {[%emt 0:00:46]} 15. cxd5 {[%emt 0:07:28]} exd5 {[%emt 0:10:44]} 16. Nxc6 {[%emt 0:06:52]} Bxc6 {[%emt 0:00:28]} 17. Qf3 {[%emt 0:07:33]} Bd6 {[%emt 0:06:29]} 18. Rc2 {[%emt 0:03:16]} Ne4 {[%emt 0:05:37]} 19. Rdc1 {[%emt 0:03:22]} Qd7 {[%emt 0:08:29]} 20. Ba6 {[%emt 0:07:21]} Bb7 {[%emt 0:04:02]} 21. Bxb7 {[%emt 0:07:42]} Qxb7 {[%emt 0:01:08]} 22. Nxe4 {[%emt 0:06:13]} Rxc2 {[%emt 0:04:05]} 23. Rxc2 {[%emt 0:00:43]} dxe4 {[%emt 0:01:12]} 24. Qc3 {[%emt 0:01:36]} h6 {[%emt 0:01:21]} 25. d5 {[%emt 0:04:24]} Be5 {[%emt 0:00:34]} 26. Qc6 {[%emt 0:01:54]} Qxc6 {[%emt 0:01:21]} 27. dxc6 {[%emt 0:00:05]} Bxb2 {[%emt 0:00:10]} 28. Rxb2 {[%emt 0:00:03]} Rc8 {[%emt 0:00:29]} 29. Rc2 {[%emt 0:00:03]} Kf8 {[%emt 0:00:04]} 30. f3 {[%emt 0:02:48]} exf3 {[%emt 0:01:13]} 31. gxf3 {[%emt 0:00:02]} Ke7 {[%emt 0:00:08]} 32. b4 {[%emt 0:00:13]} b5 {[%emt 0:01:45]} 33. a4 {[%emt 0:01:29]} a6 {[%emt 0:01:28]} 34. axb5 {[%emt 0:01:55]} axb5 {[%emt 0:00:07]} 35. Rc5 {[%emt 0:00:16]} Kd6 {[%emt 0:00:14]} 36. Rxb5 {[%emt 0:00:42]} Kxc6 {[%emt 0:00:16]} 37. Rc5+ {[%emt 0:01:10]} Kd7 {[%emt 0:00:09]} 38. Ra5 {[%emt 0:00:52]} Rc7 {[%emt 0:00:40]} 39. Kf2 {[%emt 0:00:59]} Rb7 {[%emt 0:00:08]} 40. Rf5 {[%emt 0:00:00]} Ke6 {[%emt 0:00:00]} 41. Rf4 {[%emt 0:02:30]} g5 {[%emt 0:03:54]} 42. Re4+ {[%emt 0:00:16]} Kd5 {[%emt 0:00:31]} 43. Ke3 {[%emt 0:00:24]} f5 {[%emt 0:00:20]} 44. Rd4+ {[%emt 0:00:23]} Ke5 {[%emt 0:00:40]} 45. Kd3 {[%emt 0:01:29]} h5 {[%emt 0:00:30]} 46. Rc4 {[%emt 0:00:50]} Rb5 {[%emt 0:01:41]} 47. h3 {[%emt 0:03:33]} 1/2-1/2

[Event "Polish Youth 1st League 2022"]
[Site "Lublin"]
[Date "2022.06.28"]
[Round "4.23"]
[White "Uliasz, Katarzyna"]
[Black "Czarnecka, Lidia"]
[Result "1/2-1/2"]
[ECO "B81"]
[WhiteElo "1526"]
[BlackElo "1940"]
[Annotator "RC"]
[PlyCount "83"]
[EventDate "2022.06.24"]
[EventType "team-tourn"]
[EventCountry "POL"]
[SourceTitle "playchess.com"]
[Source "ChessBase"]
[SourceQuality "1"]
[TimeControl "40/5400+30:1800+30"]

1. e4 {[%emt 0:00:02]} c5 {[%emt 0:00:43]} 2. Nf3 {[%emt 0:00:05]} e6 {[%emt 0:00:26]} 3. d4 {[%emt 0:00:07]} cxd4 {[%emt 0:00:07]} 4. Nxd4 {[%emt 0:00:03]} Nf6 {[%emt 0:00:08]} 5. Nc3 {[%emt 0:00:05]} d6 {[%emt 0:00:05]} 6. g4 {[%emt 0:00:06]} h6 {[%emt 0:00:07]} 7. h4 {[%emt 0:00:04]} Nc6 {[%emt 0:00:04]} 8. Rg1 {[%emt 0:00:08]} d5 {[%emt 0:00:05]} 9. exd5 {[%emt 0:06:34]} Nxd5 {[%emt 0:00:23]} 10. Nxd5 {[%emt 0:01:22]} Qxd5 {[%emt 0:02:48]} 11. Bg2 {[%emt 0:00:38]} Qe5+ {[%emt 0:00:12]} 12. Be3 {[%emt 0:00:51]} Bd7 {[%emt 0:03:59]} 13. Nxc6 {[%emt 0:04:39]} Bxc6 {[%emt 0:01:02]} 14. Bxc6+ {[%emt 0:00:06]} bxc6 {[%emt 0:00:06]} 15. Qd4 {[%emt 0:00:44]} Qxd4 {[%emt 0:02:02]} 16. Bxd4 {[%emt 0:00:01]} c5 {[%emt 0:01:52]} 17. Bc3 {[%emt 0:01:50]} O-O-O {[%emt 0:00:53]} 18. Ke2 {[%emt 0:03:32]} Rg8 {[%emt 0:02:47]} 19. Rad1 {[%emt 0:04:38]} Be7 {[%emt 0:01:24]} 20. Rxd8+ {[%emt 0:05:25]} Kxd8 {[%emt 0:01:50]} 21. h5 {[%emt 0:03:42]} Kd7 {[%emt 0:00:50]} 22. f4 {[%emt 0:01:09]} f6 {[%emt 0:01:28]} 23. Kf3 {[%emt 0:02:14]} Bd8 {[%emt 0:05:50]} 24. Rd1+ {[%emt 0:00:30]} Kc6 {[%emt 0:00:30]} 25. Re1 {[%emt 0:02:36]} Re8 {[%emt 0:00:55]} 26. f5 {[%emt 0:01:28]} e5 {[%emt 0:01:59]} 27. Ke4 {[%emt 0:00:20]} Bc7 {[%emt 0:00:22]} 28. Rd1 {[%emt 0:00:07]} Bd6 {[%emt 0:00:13]} 29. Ba5 {[%emt 0:00:39]} Rb8 {[%emt 0:00:23]} 30. Bc3 {[%emt 0:00:08]} Rb6 {[%emt 0:00:27]} 31. a3 {[%emt 0:01:20]} Ra6 {[%emt 0:00:48]} 32. Kf3 {[%emt 0:02:51]} Ra4 {[%emt 0:00:13]} 33. Rg1 {[%emt 0:01:31]} Rf4+ {[%emt 0:01:09]} 34. Ke2 {[%emt 0:02:20]} Ra4 {[%emt 0:07:25]} 35. Kf3 {[%emt 0:00:29]} Bc7 {[%emt 0:00:07]} 36. Bd2 {[%emt 0:02:41]} Kb5 {[%emt 0:02:37]} 37. Be3 {[%emt 0:04:08]} Ba5 {[%emt 0:07:04]} 38. Rd1 {[%emt 0:02:05]} Kc6 {[%emt 0:00:06]} 39. c3 {[%emt 0:07:30]} Bb6 {[%emt 0:05:24]} 40. Bc1 {[%emt 0:00:00]} Ra6 {[%emt 0:00:00]} 41. c4 {[%emt 0:11:17]} Ba5 {[%emt 0:11:45]} 42. Ke4 1/2-1/2

[Event "Polish Youth 1st League 2022"]
[Site "Lublin"]
[Date "2022.06.28"]
[Round "4.24"]
[White "Slusarczyk, Anna"]
[Black "Tokarz, Gabriela"]
[Result "1/2-1/2"]
[ECO "D04"]
[WhiteElo "1544"]
[BlackElo "1469"]
[Annotator "NA RC"]
[PlyCount "148"]
[EventDate "2022.06.24"]
[EventType "team-tourn"]
[EventCountry "POL"]
[SourceTitle "playchess.com"]
[Source "ChessBase"]
[SourceQuality "1"]
[TimeControl "40/5400+30:1800+30"]

1. d4 {[%emt 0:00:01]} d5 {[%emt 0:00:05]} 2. Nf3 {[%emt 0:00:22]} Nf6 {[%emt 0:00:10]} 3. e3 {[%emt 0:00:03]} Bg4 {[%emt 0:00:06]} 4. Be2 {[%emt 0:00:07]} e6 {[%emt 0:00:09]} 5. O-O {[%emt 0:00:40]} Nbd7 {[%emt 0:00:29]} 6. b3 {[%emt 0:00:12]} Bd6 {[%emt 0:00:11]} 7. Bb2 {[%emt 0:00:04]} O-O {[%emt 0:00:38]} 8. Nbd2 {[%emt 0:00:20]} c6 {[%emt 0:01:17]} 9. Ne5 {[%emt 0:00:34]} Bxe2 {[%emt 0:00:19]} 10. Qxe2 {[%emt 0:00:02]} Re8 {[%emt 0:06:16]} 11. f4 {[%emt 0:00:34]} Nf8 {[%emt 0:02:11]} 12. Rf3 {[%emt 0:07:29]} N6d7 {[%emt 0:04:59]} 13. Rg3 {[%emt 0:03:51]} f6 {[%emt 0:01:03]} 14. Qg4 {[%emt 0:19:57]} Qe7 {[%emt 0:01:18]} 15. Nd3 {[%emt 0:00:11]} Ng6 {[%emt 0:01:13]} 16. Rh3 {[%emt 0:02:00]} f5 {[%emt 0:03:21]} 17. Qe2 {[%emt 0:01:03]} Nf6 {[%emt 0:00:46]} 18. Ne5 {[%emt 0:02:52]} Bxe5 {[%emt 0:00:47]} 19. fxe5 {[%emt 0:00:32]} Ne4 {[%emt 0:00:12]} 20. Nxe4 {[%emt 0:01:35]} fxe4 {[%emt 0:00:10]} 21. a4 {[%emt 0:00:29]} Rac8 22. Ba3 {[%emt 0:07:23]} Qg5 {[%emt 0:08:04]} 23. Rh5 {[%emt 0:00:17]} Qd8 {[%emt 0:00:52]} 24. Bd6 {[%emt 0:05:37]} Ne7 {[%emt 0:00:40]} 25. Qg4 {[%emt 0:04:27]} Nf5 {[%emt 0:00:56]} 26. Rxf5 {[%emt 0:01:44]} exf5 {[%emt 0:00:15]} 27. Qxf5 {[%emt 0:00:03]} h6 {[%emt 0:03:25]} 28. Rf1 {[%emt 0:01:20]} Qg5 {[%emt 0:02:44]} 29. Qf7+ {[%emt 0:00:10]} Kh8 {[%emt 0:00:08]} 30. Rf4 {[%emt 0:00:20]} b6 {[%emt 0:02:58]} 31. b4 {[%emt 0:03:25]} a5 {[%emt 0:02:17]} 32. bxa5 {[%emt 0:00:17]} bxa5 {[%emt 0:00:06]} 33. e6 {[%emt 0:04:11]} Kh7 {[%emt 0:04:41]} 34. h4 {[%emt 0:02:48]} Qg6 {[%emt 0:01:18]} 35. Qxg6+ {[%emt 0:00:43]} Kxg6 {[%emt 0:00:06]} 36. e7 {[%emt 0:00:11]} Kh5 {[%emt 0:03:35]} 37. g3 {[%emt 0:08:28]} g5 {[%emt 0:00:51]} 38. hxg5 {[%emt 0:02:33]} Kxg5 {[%emt 0:02:04]} 39. Rf8 {[%emt 0:00:55]} h5 {[%emt 0:02:22]} 40. Kg2 {[%emt 0:00:00]} h4 {[%emt 0:00:00]} 41. gxh4+ {[%emt 0:01:58]} Kxh4 {[%emt 0:00:33]} 42. Rf4+ {[%emt 0:00:03]} Kg5 {[%emt 0:00:39]} 43. Kg3 {[%emt 0:00:33]} Ra8 {[%emt 0:00:36]} 44. Rf8 {[%emt 0:05:50]} Rac8 {[%emt 0:00:25]} 45. Rf2 {[%emt 0:04:08]} Ra8 {[%emt 0:01:17]} 46. Rf1 {[%emt 0:02:45]} Ra6 {[%emt 0:03:03]} 47. Bc7 {[%emt 0:03:03]} Raa8 {[%emt 0:04:38]} 48. Bd8 {[%emt 0:01:42]} Rexd8 {[%emt 0:00:16]} 49. exd8=Q+ {[%emt 0:00:10]} Rxd8 {[%emt 0:00:06]} 50. Rf7 {[%emt 0:02:32]} Rc8 {[%emt 0:02:17]} 51. Ra7 {[%emt 0:00:22]} Kf5 {[%emt 0:00:50]} 52. Rxa5 {[%emt 0:01:35]} Ke6 {[%emt 0:00:07]} 53. Rc5 {[%emt 0:00:44]} Kd6 {[%emt 0:00:13]} 54. c4 {[%emt 0:03:13]} Rf8 {[%emt 0:05:41]} 55. cxd5 {[%emt 0:00:43]} cxd5 {[%emt 0:00:10]} 56. Kg2 {[%emt 0:01:44]} Rb8 {[%emt 0:00:28]} 57. Rc3 {[%emt 0:00:17]} Rb2+ {[%emt 0:00:09]} 58. Kg3 {[%emt 0:00:44]} Ra2 {[%emt 0:00:26]} 59. Rb3 {[%emt 0:00:31]} Rxa4 {[%emt 0:00:13]} 60. Rb6+ {[%emt 0:00:31]} Kc7 {[%emt 0:00:12]} 61. Rh6 {[%emt 0:00:31]} Ra8 {[%emt 0:04:20]} 62. Kf4 {[%emt 0:00:55]} Rf8+ {[%emt 0:00:18]} 63. Ke5 {[%emt 0:00:13]} Rf3 {[%emt 0:04:32]} 64. Kxd5 {[%emt 0:00:23]} Rxe3 {[%emt 0:00:08]} 65. Rh7+ {[%emt 0:00:08]} Kc8 {[%emt 0:00:29]} 66. Rh8+ {[%emt 0:08:03]} Kd7 {[%emt 0:00:26]} 67. Rh7+ {[%emt 0:00:17]} Kc8 {[%emt 0:00:08]} 68. Ke6 {[%emt 0:06:11]} Rd3 {[%emt 0:00:31]} 69. d5 {[%emt 0:00:09]} e3 {[%emt 0:01:17]} 70. Rh4 {[%emt 0:00:23]} e2 {[%emt 0:00:48]} 71. Re4 {[%emt 0:00:05]} Rd2 {[%emt 0:00:17]} 72. d6 {[%emt 0:00:08]} Kd8 {[%emt 0:00:21]} 73. Re3 {[%emt 0:00:19]} Ra2 {[%emt 0:00:30]} 74. Re4 {[%emt 0:00:34]} Rd2 {[%emt 0:00:16]} 1/2-1/2

[Event "Polish Youth 1st League 2022"]
[Site "Lublin"]
[Date "2022.06.28"]
[Round "4.25"]
[White "Kania, Dominik"]
[Black "Jedraszek, Pawel"]
[Result "1/2-1/2"]
[ECO "B22"]
[WhiteElo "1872"]
[BlackElo "1933"]
[Annotator "NA RC"]
[PlyCount "103"]
[EventDate "2022.06.24"]
[EventType "team-tourn"]
[EventCountry "POL"]
[SourceTitle "playchess.com"]
[Source "ChessBase"]
[SourceQuality "1"]
[TimeControl "40/5400+30:1800+30"]

1. e4 c5 {[%emt 0:00:01]} 2. c3 {[%emt 0:01:13]} Nf6 {[%emt 0:00:13]} 3. e5 {[%emt 0:00:08]} Nd5 {[%emt 0:00:02]} 4. d4 {[%emt 0:00:12]} cxd4 {[%emt 0:00:10]} 5. Nf3 {[%emt 0:00:06]} e6 {[%emt 0:01:45]} 6. cxd4 {[%emt 0:00:20]} b6 {[%emt 0:00:31]} 7. Nc3 {[%emt 0:01:56]} Nxc3 {[%emt 0:00:07]} 8. bxc3 {[%emt 0:00:04]} Qc7 {[%emt 0:00:36]} 9. Bd2 {[%emt 0:01:24]} Bb7 {[%emt 0:05:05]} 10. Bd3 {[%emt 0:01:35]} d6 {[%emt 0:01:39]} 11. O-O {[%emt 0:01:09]} Nd7 {[%emt 0:00:58]} 12. exd6 {[%emt 0:05:35]} Bxd6 {[%emt 0:00:03]} 13. h3 {[%emt 0:00:11]} h6 {[%emt 0:02:33]} 14. Qe2 {[%emt 0:01:00]} O-O {[%emt 0:05:43]} 15. Rfe1 {[%emt 0:10:11]} Rfd8 {[%emt 0:04:07]} 16. c4 {[%emt 0:11:55]} Rac8 {[%emt 0:02:21]} 17. Rac1 {[%emt 0:03:00]} Bf4 {[%emt 0:07:29]} 18. Be3 {[%emt 0:05:14]} Nf6 {[%emt 0:05:42]} 19. Red1 {[%emt 0:11:18]} Qd6 {[%emt 0:06:48]} 20. Qd2 {[%emt 0:03:51]} Bxe3 {[%emt 0:06:34]} 21. Qxe3 {[%emt 0:02:34]} Qb4 {[%emt 0:07:22]} 22. Ne5 {[%emt 0:01:18]} Kf8 {[%emt 0:03:55]} 23. Qf4 {[%emt 0:04:41]} Qb2 {[%emt 0:02:20] [#]} 24. Bb1 {[%emt 0:01:16]} ({White has to play} 24. d5 $1 $16) 24... Qa3 {[%emt 0:06:10]} 25. h4 {[%emt 0:01:48]} Kg8 $16 {[%emt 0:02:17]} 26. f3 {[%emt 0:05:20]} Qe7 {[%emt 0:02:44]} 27. a4 {[%emt 0:13:37]} Nd7 {[%emt 0:00:41]} 28. Nxd7 {[%emt 0:00:33]} Rxd7 {[%emt 0:00:15]} 29. h5 {[%emt 0:00:54]} Rcd8 {[%emt 0:02:05]} 30. d5 {[%emt 0:02:14]} Qf6 {[%emt 0:09:05]} 31. Qe4 {[%emt 0:01:57]} g6 {[%emt 0:03:35]} 32. hxg6 fxg6 33. Qxg6+ {[%emt 0:02:52]} Qxg6 {[%emt 0:00:37]} 34. Bxg6 {[%emt 0:00:03]} Kg7 {[%emt 0:03:11]} 35. Be4 {[%emt 0:00:08]} Kf6 {[%emt 0:01:22]} 36. Kf2 {[%emt 0:03:05]} exd5 {[%emt 0:00:42]} 37. cxd5 {[%emt 0:00:15]} Bxd5 {[%emt 0:00:16]} 38. Bxd5 {[%emt 0:01:25]} Rxd5 {[%emt 0:00:02]} 39. Rc6+ {[%emt 0:00:06]} Kg5 {[%emt 0:01:17]} 40. Re1 {[%emt 0:00:00]} R8d6 {[%emt 0:00:00]} 41. Rxd6 {[%emt 0:06:03]} Rxd6 {[%emt 0:01:32]} 42. a5 {[%emt 0:00:48]} Rd2+ {[%emt 0:18:53]} 43. Kg3 {[%emt 0:00:19]} Rb2 {[%emt 0:00:21]} 44. Re7 {[%emt 0:05:17]} Ra2 {[%emt 0:01:28]} 45. Rxa7 {[%emt 0:01:09]} bxa5 {[%emt 0:00:19]} 46. Ra6 {[%emt 0:00:56]} Ra4 {[%emt 0:05:32]} 47. Kf2 {[%emt 0:05:19]} h5 {[%emt 0:00:29]} 48. g3 {[%emt 0:00:54]} Ra3 {[%emt 0:01:10]} 49. Kg2 {[%emt 0:01:09]} Ra1 {[%emt 0:01:03]} 50. Ra8 {[%emt 0:04:23]} a4 {[%emt 0:03:46]} 51. Ra5+ {[%emt 0:02:14]} Kg6 {[%emt 0:00:53]} 52. g4 {[%emt 0:01:04]} 1/2-1/2

[Event "Polish Youth 1st League 2022"]
[Site "Lublin"]
[Date "2022.06.28"]
[Round "4.26"]
[White "Klaska, Szymon"]
[Black "Lysakowski, Piotr"]
[Result "1/2-1/2"]
[ECO "A25"]
[WhiteElo "1563"]
[BlackElo "1542"]
[Annotator "NA RC"]
[PlyCount "80"]
[EventDate "2022.06.24"]
[EventType "team-tourn"]
[EventCountry "POL"]
[SourceTitle "playchess.com"]
[Source "ChessBase"]
[SourceQuality "1"]
[TimeControl "40/5400+30:1800+30"]

1. c4 {[%emt 0:00:36]} e5 {[%emt 0:00:12]} 2. Nc3 {[%emt 0:00:20]} Nc6 {[%emt 0:00:14]} 3. g3 {[%emt 0:00:39]} g6 {[%emt 0:00:21]} 4. Bg2 {[%emt 0:00:43]} Bg7 {[%emt 0:00:31]} 5. e3 {[%emt 0:00:52]} d6 {[%emt 0:04:10]} 6. Nge2 {[%emt 0:01:09]} f5 {[%emt 0:05:11]} 7. O-O {[%emt 0:01:03]} Nf6 {[%emt 0:01:06]} 8. d3 {[%emt 0:02:02]} O-O {[%emt 0:01:35]} 9. Rb1 {[%emt 0:01:08]} h6 {[%emt 0:03:32]} 10. b4 {[%emt 0:01:11]} g5 {[%emt 0:09:10]} 11. f4 {[%emt 0:01:23]} gxf4 {[%emt 0:01:46]} 12. exf4 {[%emt 0:02:12]} Kh7 {[%emt 0:04:47]} 13. b5 {[%emt 0:04:06]} Ne7 {[%emt 0:04:22]} 14. h3 {[%emt 0:03:51]} Qe8 {[%emt 0:05:32]} 15. fxe5 {[%emt 0:06:02]} dxe5 {[%emt 0:00:55]} 16. Ba3 {[%emt 0:00:09]} Rg8 {[%emt 0:02:09]} 17. Qd2 {[%emt 0:03:28]} Rb8 {[%emt 0:11:14]} 18. Rbe1 {[%emt 0:02:06]} Qd7 {[%emt 0:13:34]} 19. Kh1 {[%emt 0:04:46]} Ng6 {[%emt 0:04:13]} 20. Qe3 {[%emt 0:05:13]} b6 {[%emt 0:05:27]} 21. d4 {[%emt 0:02:33]} e4 {[%emt 0:05:33]} 22. c5 {[%emt 0:11:46]} Nd5 {[%emt 0:03:15]} 23. Nxd5 {[%emt 0:06:42]} Qxd5 {[%emt 0:00:04]} 24. Rd1 {[%emt 0:00:13]} Qxa2 {[%emt 0:03:17]} 25. h4 {[%emt 0:00:50]} bxc5 {[%emt 0:01:44]} 26. h5 {[%emt 0:00:01]} Ne7 {[%emt 0:01:35]} 27. Bxc5 {[%emt 0:04:46]} Nd5 {[%emt 0:00:48]} 28. Qd2 {[%emt 0:00:42]} Qxd2 {[%emt 0:03:04]} 29. Rxd2 {[%emt 0:00:03]} Rxb5 {[%emt 0:00:54]} 30. Bxa7 {[%emt 0:00:32]} Bf8 {[%emt 0:01:38]} 31. Rc1 {[%emt 0:02:26]} Bd6 {[%emt 0:01:03]} 32. Bc5 {[%emt 0:01:24]} Bxg3 {[%emt 0:01:28]} 33. Bf1 {[%emt 0:02:00]} Rb3 {[%emt 0:00:50]} 34. Nxg3 {[%emt 0:01:00]} Rbxg3 {[%emt 0:00:08]} 35. Bc4 {[%emt 0:00:17]} Rh3+ {[%emt 0:00:52]} 36. Rh2 {[%emt 0:00:05]} Rxh2+ {[%emt 0:00:04]} 37. Kxh2 {[%emt 0:00:02]} c6 {[%emt 0:00:33]} 38. Ra1 {[%emt 0:00:58]} Rg7 {[%emt 0:00:59]} 39. Ra8 {[%emt 0:00:44]} Bd7 {[%emt 0:00:57]} 40. Bd6 {[%emt 0:00:00]} Nb6 {[%emt 0:00:00]} 1/2-1/2

[Event "Polish Youth 1st League 2022"]
[Site "Lublin"]
[Date "2022.06.28"]
[Round "4.27"]
[White "Musial, Igor"]
[Black "Ugorek, Kacper"]
[Result "1/2-1/2"]
[ECO "C74"]
[WhiteElo "1699"]
[BlackElo "1696"]
[Annotator "NA RC"]
[PlyCount "126"]
[EventDate "2022.06.24"]
[EventType "team-tourn"]
[EventCountry "POL"]
[SourceTitle "playchess.com"]
[Source "ChessBase"]
[SourceQuality "1"]
[TimeControl "40/5400+30:1800+30"]

1. e4 {[%emt 0:00:00]} e5 {[%emt 0:00:06]} 2. Nf3 {[%emt 0:00:21]} Nc6 {[%emt 0:00:08]} 3. Bb5 {[%emt 0:00:09]} a6 {[%emt 0:00:07]} 4. Ba4 {[%emt 0:00:04]} d6 {[%emt 0:00:24]} 5. c3 {[%emt 0:01:17]} f5 {[%emt 0:00:58]} 6. d3 {[%emt 0:02:37]} Nf6 {[%emt 0:00:27]} 7. Nbd2 {[%emt 0:01:38]} Be7 {[%emt 0:00:47]} 8. O-O {[%emt 0:03:44]} O-O {[%emt 0:04:03]} 9. Re1 {[%emt 0:08:17]} fxe4 {[%emt 0:02:23]} 10. dxe4 {[%emt 0:02:43]} Qe8 {[%emt 0:01:21]} 11. Nf1 {[%emt 0:07:25]} Nh5 {[%emt 0:02:11]} 12. Ne3 {[%emt 0:13:36]} Qg6 {[%emt 0:14:47]} 13. Nf5 {[%emt 0:07:41]} Bd8 {[%emt 0:15:48]} 14. N3h4 {[%emt 0:22:58]} Bxh4 {[%emt 0:15:10]} 15. Nxh4 {[%emt 0:00:07]} Qe8 {[%emt 0:05:21]} 16. Nf5 {[%emt 0:03:41]} Kh8 {[%emt 0:05:12]} 17. Be3 {[%emt 0:06:06]} Nf6 {[%emt 0:04:00]} 18. f3 {[%emt 0:01:29]} Bd7 {[%emt 0:02:17]} 19. Qe2 {[%emt 0:02:03]} Nh5 {[%emt 0:02:26]} 20. Qf2 {[%emt 0:04:39]} g6 {[%emt 0:03:34]} 21. Nh6 {[%emt 0:02:01]} Nf4 {[%emt 0:00:55]} 22. Qh4 {[%emt 0:02:31]} Qd8 {[%emt 0:00:25]} 23. Qxd8 {[%emt 0:01:05]} Raxd8 {[%emt 0:00:01]} 24. Rad1 {[%emt 0:00:54]} b5 {[%emt 0:02:30]} 25. Bc2 {[%emt 0:00:14]} Kg7 {[%emt 0:00:45]} 26. Ng4 {[%emt 0:00:08]} Bxg4 {[%emt 0:00:28]} 27. fxg4 {[%emt 0:00:29]} h6 {[%emt 0:02:42]} 28. g3 {[%emt 0:01:48]} Ne6 {[%emt 0:00:02]} 29. Kg2 {[%emt 0:00:51]} Na5 {[%emt 0:00:53]} 30. b3 {[%emt 0:01:22]} Nb7 {[%emt 0:02:08]} 31. b4 {[%emt 0:00:45]} c6 {[%emt 0:04:10]} 32. Bb3 {[%emt 0:00:41]} Nc7 {[%emt 0:01:19]} 33. Bb6 {[%emt 0:01:48]} Rd7 {[%emt 0:00:30]} 34. Be3 {[%emt 0:00:31]} Rfd8 {[%emt 0:05:35]} 35. g5 {[%emt 0:00:57]} h5 {[%emt 0:00:41]} 36. h4 {[%emt 0:01:07]} a5 {[%emt 0:01:37]} 37. a3 {[%emt 0:00:20]} a4 {[%emt 0:00:01]} 38. Ba2 {[%emt 0:00:15]} Rf8 {[%emt 0:01:43]} 39. Bf2 {[%emt 0:00:45]} Re8 {[%emt 0:00:33]} 40. Re2 {[%emt 0:00:00]} Ree7 {[%emt 0:00:00]} 41. Red2 {[%emt 0:01:25]} Re8 {[%emt 0:03:23]} 42. Bg1 {[%emt 0:14:11]} Red8 {[%emt 0:04:35]} 43. Rd3 {[%emt 0:05:24]} Rc8 {[%emt 0:08:29]} 44. Bb6 {[%emt 0:04:32]} Rf8 {[%emt 0:04:00]} 45. c4 {[%emt 0:03:36]} Na8 {[%emt 0:08:32]} 46. Bc5 {[%emt 0:03:40]} Rfd8 {[%emt 0:00:58]} 47. cxb5 {[%emt 0:00:51]} cxb5 {[%emt 0:00:02]} 48. Be6 {[%emt 0:00:50]} Re7 {[%emt 0:01:16]} 49. Ba2 {[%emt 0:00:36]} dxc5 {[%emt 0:03:24]} 50. Rxd8 {[%emt 0:00:17]} Nxd8 {[%emt 0:00:01]} 51. Rxd8 {[%emt 0:00:19]} cxb4 {[%emt 0:00:16]} 52. axb4 {[%emt 0:00:45]} Nc7 53. Rd6 {[%emt 0:00:19]} Ne8 {[%emt 0:01:52]} 54. Rb6 {[%emt 0:00:52]} Rc7 {[%emt 0:01:24]} 55. Bd5 {[%emt 0:00:17]} Rc2+ {[%emt 0:00:18]} 56. Kf3 {[%emt 0:00:27]} Nc7 {[%emt 0:00:14]} 57. Rb8 {[%emt 0:00:52]} a3 {[%emt 0:01:02]} 58. Rb7 {[%emt 0:00:08]} Kf8 {[%emt 0:00:27]} 59. Ra7 {[%emt 0:00:44]} Rc3+ {[%emt 0:00:04]} 60. Kf2 {[%emt 0:00:12]} Ke7 61. Bg8 {[%emt 0:00:48]} Kf8 {[%emt 0:00:56]} 62. Bd5 {[%emt 0:00:07]} Nxd5 63. exd5 Rd3 1/2-1/2

[Event "Polish Youth 1st League 2022"]
[Site "Lublin"]
[Date "2022.06.28"]
[Round "4.28"]
[White "Dobosiewicz, Dawid"]
[Black "Rozek, Michal"]
[Result "1-0"]
[ECO "A20"]
[WhiteElo "1795"]
[BlackElo "1533"]
[Annotator "NA RC"]
[PlyCount "87"]
[EventDate "2022.06.24"]
[EventType "team-tourn"]
[EventCountry "POL"]
[SourceTitle "playchess.com"]
[Source "ChessBase"]
[SourceQuality "1"]
[TimeControl "40/5400+30:1800+30"]

1. c4 {[%emt 0:00:02]} e5 {[%emt 0:00:10]} 2. g3 {[%emt 0:00:06]} Nf6 {[%emt 0:00:11]} 3. Bg2 {[%emt 0:00:04]} c6 {[%emt 0:00:15]} 4. d4 {[%emt 0:00:03]} exd4 {[%emt 0:00:20]} 5. Qxd4 {[%emt 0:00:04]} d5 {[%emt 0:01:28]} 6. cxd5 {[%emt 0:00:04]} cxd5 {[%emt 0:01:19]} 7. Nf3 {[%emt 0:00:30]} Nc6 {[%emt 0:01:10]} 8. Qa4 {[%emt 0:00:04]} Bb4+ {[%emt 0:04:39]} 9. Bd2 {[%emt 0:00:44]} Bxd2+ {[%emt 0:00:41]} 10. Nbxd2 {[%emt 0:00:16]} O-O {[%emt 0:00:53]} 11. e3 {[%emt 0:00:47]} Bf5 {[%emt 0:05:50]} 12. Nd4 {[%emt 0:02:25]} Bd7 {[%emt 0:09:04]} 13. Nxc6 {[%emt 0:06:34]} bxc6 {[%emt 0:03:04]} 14. Qd4 {[%emt 0:00:33]} Qb6 {[%emt 0:02:49]} 15. Nb3 {[%emt 0:00:48]} Qxd4 {[%emt 0:04:28]} 16. exd4 {[%emt 0:00:39]} Rfe8+ {[%emt 0:01:10]} 17. Kd2 {[%emt 0:01:08]} Ne4+ {[%emt 0:01:27]} 18. Bxe4 {[%emt 0:01:31]} dxe4 {[%emt 0:00:29]} 19. Nc5 {[%emt 0:01:10]} Bf5 {[%emt 0:02:15]} 20. Ke3 {[%emt 0:00:44]} Rad8 {[%emt 0:04:32]} 21. h3 {[%emt 0:07:44]} Rd6 {[%emt 0:09:02]} 22. g4 {[%emt 0:00:31]} Be6 {[%emt 0:07:30]} 23. Nxe6 {[%emt 0:03:04]} Rdxe6 {[%emt 0:00:38]} 24. Rhg1 {[%emt 0:00:56]} Rf6 {[%emt 0:07:13]} 25. Rg3 {[%emt 0:00:53]} Kf8 {[%emt 0:02:52]} 26. Rc1 {[%emt 0:00:13]} Rb8 {[%emt 0:02:09]} 27. b3 {[%emt 0:00:27]} Re6 {[%emt 0:01:02]} 28. Rc5 {[%emt 0:00:24]} Rb5 {[%emt 0:03:35]} 29. Rxb5 {[%emt 0:00:21]} cxb5 {[%emt 0:00:11]} 30. d5 {[%emt 0:05:22]} Ra6 {[%emt 0:04:05]} 31. Kxe4 {[%emt 0:00:08]} Rxa2 {[%emt 0:00:49]} 32. Rc3 {[%emt 0:01:03]} Rd2 {[%emt 0:14:35]} 33. Ke5 {[%emt 0:01:07]} Rxf2 {[%emt 0:04:38]} 34. Kd6 {[%emt 0:00:05]} Rf6+ {[%emt 0:00:23]} 35. Kd7 {[%emt 0:00:06]} g6 {[%emt 0:00:42]} 36. d6 {[%emt 0:00:09]} a5 {[%emt 0:01:20]} 37. Kc7 {[%emt 0:00:10]} Rf4 {[%emt 0:00:38]} 38. d7 {[%emt 0:00:04]} Rd4 {[%emt 0:00:11]} 39. d8=Q+ {[%emt 0:00:05]} Rxd8 {[%emt 0:00:10]} 40. Kxd8 {[%emt 0:00:00]} a4 {[%emt 0:00:00]} 41. bxa4 {[%emt 0:00:07]} bxa4 {[%emt 0:00:20]} 42. Ra3 {[%emt 0:00:02]} Kg7 {[%emt 0:00:22]} 43. Ke7 {[%emt 0:00:07]} f5 {[%emt 0:00:17]} 44. Rxa4 {[%emt 0:00:06]} 1-0